bitfinex/quotes_BTCUSD_20250417
["timestamp","ask_amount","ask_price","bid_price","bid_amount"]
[1744928498874,0.01177648,84915.0,84912.0,0.00977985]
[1744928499369,0.24730689,84915.0,84912.0,0.00977985]
[1744928499672,0.01177634,84916.0,84912.0,0.00977985]
[1744928502877,0.01177606,84918.0,84912.0,0.00977985]
[1744928503292,0.01177634,84916.0,84912.0,0.00977985]
[1744928504105,0.01177606,84918.0,84912.0,0.00977985]
[1744928505063,0.01177606,84918.0,84912.0,0.00647544]
[1744928511230,0.01177606,84918.0,84914.0,0.34]
[1744928511637,0.01177606,84918.0,84915.0,0.00647454]
[1744928514692,0.2354663,84938.0,84922.0,0.35177551]
[1744928514897,0.01177495,84926.0,84921.0,0.01177565]
[1744928515101,0.01177495,84926.0,84924.0,0.34]
[1744928515302,0.24727644,84926.0,84925.0,0.00648017]
[1744928516428,0.24737149,84926.0,84925.0,0.00648017]
[1744928516591,0.01177551,84922.0,84919.0,0.34]
[1744928517189,0.01177551,84922.0,84918.0,0.14131163]
[1744928517409,0.01177565,84921.0,84918.0,0.14131163]
[1744928517617,0.01177551,84922.0,84918.0,0.14131163]
[1744928517819,0.24729155,84920.0,84916.0,0.00885038]
[1744928518012,0.01177578,84920.0,84916.0,0.14131497]
[1744928518673,0.01177578,84920.0,84917.0,0.14131348]
[1744928518885,0.01177426,84931.0,84921.0,0.1901078]
[1744928519046,0.01177481,84927.0,84924.0,0.14130281]
[1744928519208,0.01187,84926.0,84923.0,0.34]
[1744928519411,0.01177481,84927.0,84926.0,0.00315216]
[1744928519637,0.11006126,84928.0,84926.0,0.00315216]
[1744928519869,0.01177481,84927.0,84926.0,0.00315216]
[1744928520534,0.10181819,84928.0,84926.0,0.00315216]
[1744928520738,0.01177467,84928.0,84926.0,0.00315216]
[1744928521139,0.21488487,84929.0,84926.0,0.00315216]
[1744928521768,0.01177454,84929.0,84926.0,0.00315216]
[1744928521947,0.01177426,84931.0,84926.0,0.14445]
[1744928522157,0.01177454,84929.0,84926.0,0.14445]
[1744928523078,0.0117744,84930.0,84926.0,0.14445]
[1744928523400,0.01177426,84931.0,84929.0,0.34]
[1744928524304,0.01177454,84929.0,84927.0,0.34]
[1744928524479,0.01177454,84929.0,84926.0,0.00315216]
[1744928525977,0.0117744,84930.0,84926.0,0.14445083]
[1744928527268,0.0117744,84930.0,84926.0,0.00315216]
[1744928528135,0.24726373,84930.0,84926.0,0.00315216]
[1744928529040,0.20388313,84930.0,84926.0,0.00315216]
[1744928529336,0.20388313,84930.0,84926.0,0.14445087]
[1744928529588,0.21565753,84930.0,84926.0,0.14445087]
[1744928530066,0.21565753,84930.0,84926.0,0.00315216]
[1744928530277,0.01177454,84929.0,84926.0,0.00475875]
[1744928531267,0.01177454,84929.0,84927.0,0.34]
[1744928535002,0.01177454,84929.0,84928.0,0.00644031]
[1744928535895,0.16770982,84930.0,84928.0,0.00644031]
[1744928536020,0.165355,84930.0,84928.0,0.00644031]
[1744928536587,0.01177454,84929.0,84928.0,0.00644031]
[1744928537393,0.00763941,84929.0,84928.0,0.00644031]
[1744928538556,0.00763941,84929.0,84926.0,0.00475875]
[1744928538889,0.24313143,84929.0,84927.0,0.00644125]
[1744928539117,0.0117744,84930.0,84927.0,0.00644125]
[1744928539254,0.01412922,84930.0,84927.0,0.14773803]
[1744928539898,0.01412922,84930.0,84927.0,0.34644125]
[1744928541412,0.00235482,84930.0,84927.0,0.48773756]
[1744928541613,0.01412922,84930.0,84927.0,0.14773756]
[1744928541822,0.00235482,84930.0,84927.0,0.14773756]
[1744928543076,0.00235482,84930.0,84928.0,0.34]
[1744928543347,0.00235482,84930.0,84929.0,0.00644234]
[1744928544809,0.00235482,84930.0,84927.0,0.34]
[1744928545019,0.00235482,84930.0,84929.0,0.00644327]
[1744928545220,0.04785482,84930.0,84929.0,0.00160659]
[1744928545429,0.21400273,84930.0,84929.0,0.00804986]
[1744928545834,0.21400273,84930.0,84929.0,0.00160659]
[1744928549571,0.0912,84927.0,84926.0,0.00315216]
[1744928549777,0.21300273,84927.0,84926.0,0.00315216]
[1744928553858,0.24729846,84918.0,84917.0,0.17274785]
[1744928554030,0.13122397,84918.0,84915.0,0.16487075]
[1744928554230,0.01177565,84921.0,84917.0,0.00969469]
[1744928554437,0.01177578,84920.0,84916.0,0.00972168]
[1744928554634,0.24964899,84920.0,84918.0,0.00972589]
[1744928554917,0.0117762,84917.0,84913.0,0.16487431]
[1744928555134,0.0117762,84917.0,84914.0,0.00972028]
[1744928555539,0.01177634,84916.0,84911.0,0.16487709]
[1744928555738,0.01413102,84917.0,84912.0,0.174594]
[1744928556932,0.23553496,84914.0,84912.0,0.00971888]
[1744928557131,0.00235482,84913.0,84912.0,0.00971888]
[1744928557446,0.23553796,84912.0,84911.0,0.34]
[1744928558696,0.40008587,84912.0,84911.0,0.34]
[1744928558904,0.01177814,84903.0,84901.0,0.34]
[1744928559108,0.2355768,84898.0,84893.0,0.30558785]
[1744928559439,0.40247953,84898.0,84892.0,0.0008432]
[1744928559673,0.40012471,84898.0,84892.0,0.0008432]
[1744928560465,0.40012471,84898.0,84897.0,0.01728213]
[1744928565351,0.44862471,84898.0,84897.0,0.00129307]
[1744928565563,0.23558235,84896.0,84892.0,0.0008432]
[1744928565758,0.12180273,84895.0,84892.0,0.0008432]
[1744928571580,0.12280273,84895.0,84892.0,0.0008432]
[1744928581588,0.12180273,84895.0,84892.0,0.0008432]
[1744928581793,0.23559068,84893.0,84892.0,0.0008432]
[1744928582014,0.35739341,84893.0,84892.0,0.0008432]
[1744928582213,0.35503859,84893.0,84892.0,0.0008432]
[1744928583406,0.35503859,84893.0,84892.0,0.01079252]
[1744928583631,0.03167982,84894.0,84892.0,0.01179252]
[1744928584453,0.26726774,84894.0,84892.0,0.01179252]
[1744928585316,0.03167982,84894.0,84892.0,0.01179252]
[1744928585988,0.26726793,84894.0,84892.0,0.01179252]
[1744928586326,0.00235482,84893.0,84892.0,0.01179252]
[1744928588557,0.26726793,84894.0,84892.0,0.01179252]
[1744928588807,0.38671584,84894.0,84892.0,0.01179252]
[1744928589182,0.00235482,84893.0,84892.0,0.01179252]
[1744928597418,0.25548076,84892.0,84891.0,0.002]
[1744928597857,0.25548076,84892.0,84891.0,0.00310215]
[1744928600435,0.01988731,84892.0,84891.0,0.00310215]
[1744928604860,0.01988731,84892.0,84891.0,0.01179086]
[1744928606208,0.02224213,84892.0,84891.0,0.01179086]
[1744928609871,0.01924213,84892.0,84891.0,0.01179086]
[1744928612547,0.24069268,84891.0,84890.0,0.0208462]
[1744928615298,0.00509645,84891.0,84890.0,0.0208462]
[1744928616854,0.00745127,84891.0,84890.0,0.0208462]
[1744928617744,0.00509645,84891.0,84890.0,0.0208462]
[1744928620024,0.00509645,84891.0,84890.0,0.02720005]
[1744928622794,0.22069133,84892.0,84890.0,0.02720005]
[1744928623234,0.22304615,84892.0,84890.0,0.02720005]
[1744928624640,0.20304615,84892.0,84890.0,0.02720005]
[1744928626351,0.01277953,84893.0,84890.0,0.02720005]
[1744928626522,0.001,84893.0,84891.0,0.55071736]
[1744928626948,0.001,84893.0,84892.0,0.00635953]
[1744928630163,0.23759068,84893.0,84892.0,0.00635953]
[1744928630589,0.23759068,84893.0,84890.0,0.03262615]
[1744928630787,0.002,84893.0,84892.0,0.00635043]
[1744928631000,0.002,84893.0,84891.0,0.34635183]
[1744928631198,0.001,84893.0,84892.0,0.00635323]
[1744928640183,0.00335482,84893.0,84892.0,0.00635323]
[1744928641283,0.001,84893.0,84892.0,0.00635323]
[1744928644151,0.001,84893.0,84891.0,0.17669592]
[1744928644437,0.001,84893.0,84892.0,0.00556343]
[1744928645529,0.00044859,84898.0,84895.0,0.17668807]
[1744928645751,0.00044859,84898.0,84896.0,0.00475036]
[1744928646162,0.00044859,84898.0,84896.0,0.1696562]
[1744928646356,0.00044859,84898.0,84897.0,0.34]
[1744928646904,0.00044859,84898.0,84897.0,0.34475316]
[1744928649228,0.00044859,84898.0,84897.0,0.00475316]
[1744928649611,0.01222743,84898.0,84895.0,0.34]
[1744928649761,0.01222743,84898.0,84897.0,0.00414415]
[1744928649958,0.23557958,84897.0,84896.0,0.00414135]
[1744928650159,0.23557958,84897.0,84895.0,0.34]
[1744928651213,0.01222743,84898.0,84894.0,0.51668998]
[1744928651394,0.01222743,84898.0,84895.0,0.01177925]
[1744928651575,0.01177897,84897.0,84894.0,0.35177939]
[1744928651785,0.01177897,84897.0,84896.0,0.00414135]
[1744928651983,0.01177897,84897.0,84895.0,0.00414275]
[1744928652186,0.01177897,84897.0,84896.0,0.00414415]
[1744928652539,0.01177897,84897.0,84894.0,0.01177939]
[1744928652697,0.01177897,84897.0,84896.0,0.00414415]
[1744928652903,0.01177897,84897.0,84894.0,0.01177939]
[1744928653098,0.01177897,84897.0,84895.0,0.00414275]
[1744928653993,0.24736031,84897.0,84895.0,0.00414275]
[1744928654317,0.24736031,84897.0,84893.0,0.35177953]
[1744928654557,0.24736031,84897.0,84894.0,0.0036071]
[1744928656476,0.23244828,84897.0,84894.0,0.0036071]
[1744928656675,0.2348031,84897.0,84894.0,0.0036071]
[1744928657783,0.01413379,84897.0,84894.0,0.0036071]
[1744928659040,0.01413379,84897.0,84894.0,0.16851738]
[1744928659281,0.01413379,84897.0,84894.0,0.0036071]
[1744928662053,0.01222743,84898.0,84894.0,0.01610151]
[1744928662197,0.01222743,84898.0,84895.0,0.34]
[1744928662607,0.01222743,84898.0,84896.0,0.0036057]
[1744928663009,0.01458225,84898.0,84896.0,0.0036057]
[1744928667274,0.01458225,84898.0,84895.0,0.34]
[1744928668614,0.25016117,84898.0,84894.0,0.35249441]
[1744928668808,0.24780635,84898.0,84894.0,0.35249441]
[1744928668969,0.00235482,84897.0,84894.0,0.517405]
[1744928670897,0.00235482,84897.0,84894.0,0.31054455]
[1744928671428,0.00044859,84898.0,84896.0,0.16490765]
[1744928671628,0.00044859,84898.0,84895.0,0.01177925]
[1744928671994,0.00235482,84897.0,84895.0,0.01177925]
[1744928673088,0.00280341,84898.0,84895.0,0.01177925]
[1744928673672,0.00280341,84898.0,84895.0,0.17668802]
[1744928674528,0.00280341,84898.0,84894.0,0.01177939]
[1744928675069,0.00280341,84898.0,84895.0,0.16490877]
[1744928675429,0.00280341,84898.0,84895.0,0.17668802]
[1744928676082,0.00044859,84898.0,84896.0,0.16490665]
[1744928689296,0.00044859,84898.0,84897.0,0.34]
[1744928719206,0.01177939,84894.0,84891.0,0.34]
[1744928719408,0.24736887,84894.0,84891.0,0.34]
[1744928719621,0.01177939,84894.0,84891.0,0.34]
[1744928720865,0.01177939,84894.0,84891.0,0.34047917]
[1744928721446,0.0481,84895.0,84893.0,0.34]
[1744928722877,0.0481,84895.0,84891.0,0.01225898]
[1744928723164,0.0481,84895.0,84892.0,0.01177967]
[1744928723494,0.0481,84895.0,84893.0,0.34]
[1744928726520,0.0481,84895.0,84893.0,0.50491214]
[1744928732366,0.00235482,84897.0,84896.0,0.34]
[1744928733678,0.01413379,84897.0,84895.0,0.34]
[1744928734280,0.00235482,84897.0,84895.0,0.34]
[1744928735983,0.01413379,84897.0,84894.0,0.34]
[1744928736184,0.01413379,84897.0,84894.0,0.34047918]
[1744928737201,0.01413379,84897.0,84894.0,0.50538966]
[1744928737370,0.00235482,84897.0,84894.0,0.51716905]
[1744928738572,0.00235482,84897.0,84895.0,0.16490798]
[1744928738776,0.00235482,84897.0,84895.0,0.16538726]
[1744928744434,0.00235482,84897.0,84896.0,0.34]
[1744928744632,0.00144859,84898.0,84896.0,0.34047918]
[1744928745554,0.00144859,84898.0,84896.0,0.16538507]
[1744928747529,0.00144859,84898.0,84897.0,0.34]
[1744928747733,0.00144859,84898.0,84897.0,0.34047918]
[1744928748870,0.00144859,84898.0,84897.0,0.18501792]
[1744928749456,0.00144859,84898.0,84896.0,0.16490589]
[1744928751316,0.00044859,84898.0,84896.0,0.16490589]
[1744928755153,0.00044859,84898.0,84896.0,0.50490589]
[1744928760468,0.00044859,84898.0,84897.0,0.34]
[1744928769136,0.00044859,84898.0,84896.0,0.16490589]
[1744928770534,0.00044859,84898.0,84897.0,0.34]
[1744928770776,0.049,84924.0,84919.0,0.16486298]
[1744928770974,0.01177467,84928.0,84919.0,0.16486298]
[1744928770975,0.01177495,84926.0,84919.0,0.16486298]
[1744928771118,0.20004483,84920.0,84919.0,0.16486298]
[1744928771936,0.20004483,84920.0,84914.0,0.01177662]
[1744928772140,0.0117762,84917.0,84913.0,0.50487287]
[1744928772354,0.0117762,84917.0,84913.0,0.34]
[1744928772355,0.24730321,84916.0,84913.0,0.34]
[1744928772565,0.01177634,84916.0,84913.0,0.34]
[1744928772797,0.0117762,84917.0,84913.0,0.35177675]
[1744928772950,0.01177634,84916.0,84913.0,0.35177675]
[1744928773276,0.21182061,84920.0,84914.0,0.01177662]
[1744928773435,0.20239965,84920.0,84916.0,0.17664364]
[1744928773638,0.01177592,84919.0,84915.0,0.1766466]
[1744928776847,0.20004483,84920.0,84916.0,0.1766436]
[1744928777049,0.21417543,84920.0,84916.0,0.01177634]
[1744928777489,0.01177592,84919.0,84916.0,0.01177634]
[1744928778951,0.01177592,84919.0,84915.0,0.1766466]
[1744928781121,0.01413074,84919.0,84915.0,0.1766466]
[1744928783803,0.0117762,84917.0,84914.0,0.01177662]
[1744928783971,0.0117762,84917.0,84914.0,0.17664868]
[1744928785236,0.0117762,84917.0,84914.0,0.01177662]
[1744928785916,0.23552132,84918.0,84914.0,0.17664825]
[1744928787278,0.23552132,84918.0,84914.0,0.01177662]
[1744928788031,0.24729738,84918.0,84914.0,0.01177662]
[1744928790521,0.01177606,84918.0,84915.0,0.35177648]
[1744928791435,0.01413074,84919.0,84916.0,0.01177634]
[1744928794571,0.24965145,84919.0,84915.0,0.35177648]
[1744928794744,0.24729663,84919.0,84915.0,0.35177648]
[1744928796909,0.01177606,84918.0,84915.0,0.35177648]
[1744928799290,0.01177606,84918.0,84915.0,0.35209792]
[1744928806920,0.01177606,84918.0,84915.0,0.51696762]
[1744928807039,0.01413074,84919.0,84915.0,0.51696762]
[1744928809723,0.20004483,84920.0,84917.0,0.3517762]
[1744928809929,0.20004483,84920.0,84919.0,0.34]
[1744928810361,0.20239965,84920.0,84919.0,0.34]
[1744928814838,0.20239965,84920.0,84919.0,0.34032142]
[1744928826554,0.20239965,84920.0,84919.0,0.34032141]
[1744928834255,0.20004483,84920.0,84919.0,0.34032141]
[1744928834467,0.20239965,84920.0,84919.0,0.34032141]
[1744928841175,0.20239965,84920.0,84919.0,0.0003214]
[1744928841534,0.24730253,84917.0,84911.0,0.10861316]
[1744928842163,0.01177634,84916.0,84913.0,0.01177675]
[1744928843183,0.24730612,84915.0,84911.0,0.10861316]
[1744928843382,0.01177648,84915.0,84911.0,0.10861316]
[1744928843863,0.24730759,84915.0,84911.0,0.10861316]
[1744928844066,0.24730759,84915.0,84906.0,0.22918671]
[1744928844067,0.23554906,84908.0,84906.0,0.01839947]
[1744928844291,0.00235482,84908.0,84906.0,0.01839947]
[1744928844499,0.01177731,84909.0,84906.0,0.01839947]
[1744928844729,0.01177662,84914.0,84909.0,0.01177731]
[1744928844859,0.01177703,84911.0,84907.0,0.01177759]
[1744928848835,0.24731933,84911.0,84907.0,0.01177759]
[1744928849046,0.01177717,84910.0,84907.0,0.01177759]
[1744928849276,0.01177731,84909.0,84906.0,0.01839947]
[1744928851818,0.24732528,84909.0,84906.0,0.01839947]
[1744928854297,0.23555163,84908.0,84906.0,0.01839947]
[1744928854611,0.23790645,84908.0,84906.0,0.01839947]
[1744928863503,0.23555163,84908.0,84906.0,0.01839947]
[1744928863708,0.24733789,84905.0,84901.0,0.42377842]
[1744928863991,0.01177786,84905.0,84902.0,0.01177828]
[1744928864154,0.011778,84904.0,84901.0,0.412]
[1744928864355,0.24733944,84904.0,84901.0,0.412]
[1744928864752,0.011778,84904.0,84901.0,0.412]
[1744928865380,0.011778,84904.0,84901.0,0.55334038]
[1744928865998,0.24733671,84905.0,84902.0,0.01177828]
[1744928867052,0.01177786,84905.0,84902.0,0.15311691]
[1744928867201,0.24733102,84907.0,84902.0,0.15311691]
[1744928867406,0.24733102,84907.0,84903.0,0.15311516]
[1744928868419,0.24733102,84907.0,84903.0,0.01177814]
[1744928869055,0.2473345,84906.0,84903.0,0.01177814]
[1744928869262,0.01177773,84906.0,84903.0,0.01177814]
[1744928872721,0.24733369,84906.0,84903.0,0.01177814]
[1744928874741,0.24733369,84906.0,84902.0,0.01177828]
[1744928877409,0.24733369,84906.0,84902.0,0.15311689]
[1744928879698,0.01177773,84906.0,84902.0,0.15311689]
[1744928881129,0.01177773,84906.0,84903.0,0.15311468]
[1744928881341,0.24733102,84907.0,84904.0,0.011778]
[1744928881528,0.24730476,84916.0,84910.0,0.1413261]
[1744928881661,0.24730476,84916.0,84911.0,0.01177703]
[1744928882533,0.20004483,84920.0,84912.0,0.01177689]
[1744928882672,0.21182061,84920.0,84915.0,0.01177648]
[1744928883507,0.44733869,84920.0,84915.0,0.15309326]
[1744928884680,0.01177592,84919.0,84915.0,0.15309326]
[1744928884891,0.20004483,84920.0,84918.0,0.1413114]
[1744928892171,0.20004483,84920.0,84918.0,0.1415267]
[1744928896768,0.20004483,84920.0,84918.0,0.0002153]
[1744928898660,0.20004483,84920.0,84919.0,0.14131113]
[1744928899231,0.20004483,84920.0,84918.0,0.0002153]
[1744928907071,0.20004483,84920.0,84918.0,0.14152722]
[1744928909474,0.20004483,84920.0,84918.0,0.14152694]
[1744928913224,0.20004483,84920.0,84919.0,0.34]
[1744928913454,0.20004483,84920.0,84919.0,0.3402153]
[1744928913860,0.20004483,84920.0,84919.0,0.0002153]
[1744928916562,0.20339965,84920.0,84919.0,0.0002153]
[1744928916774,0.29619965,84920.0,84919.0,0.0002153]
[1744928916938,0.29384483,84920.0,84919.0,0.0002153]
[1744928919391,0.41329274,84920.0,84919.0,0.0002153]
[1744928921891,0.24734767,84901.0,84900.0,0.17267071]
[1744928922103,0.01177842,84901.0,84896.0,0.14134804]
[1744928922509,0.01177842,84901.0,84897.0,0.34]
[1744928923336,0.01177842,84901.0,84897.0,0.48134614]
[1744928923544,0.01177842,84901.0,84898.0,0.01177884]
[1744928924449,0.24734159,84903.0,84900.0,0.34]
[1744928938591,0.24734159,84903.0,84899.0,0.15312312]
[1744928940704,0.24734159,84903.0,84900.0,0.01177856]
[1744928948807,0.24734159,84903.0,84899.0,0.15312312]
[1744928950494,0.24734159,84903.0,84900.0,0.15312067]
[1744928950688,0.2473379,84905.0,84901.0,0.01177842]
[1744928950986,0.24969455,84904.0,84901.0,0.01177842]
[1744928951186,0.24733973,84904.0,84901.0,0.01177842]
[1744928952023,0.24733973,84904.0,84900.0,0.01177856]
[1744928953333,0.05857773,84906.0,84901.0,0.01177842]
[1744928953536,0.05857773,84906.0,84900.0,0.01177856]
[1744928953537,0.24730321,84916.0,84912.0,0.01177689]
[1744928953715,0.36675112,84916.0,84912.0,0.01177689]
[1744928954245,0.24730768,84915.0,84912.0,0.01177689]
[1744928954539,0.01177662,84914.0,84911.0,0.14132413]
[1744928955102,0.01177662,84914.0,84911.0,0.01177703]
[1744928955303,0.01177675,84913.0,84910.0,0.01177717]
[1744928959785,0.24730768,84915.0,84910.0,0.01177717]
[1744928959786,0.36675115,84916.0,84911.0,0.15310147]
[1744928959987,0.01177648,84915.0,84911.0,0.15310147]
[1744928960196,0.01177662,84914.0,84911.0,0.15310147]
[1744928961302,0.01177675,84913.0,84910.0,0.01177717]
[1744928961509,0.01177675,84913.0,84906.0,0.01177773]
[1744928961721,0.24731777,84911.0,84907.0,0.01177759]
[1744928962677,0.01177703,84911.0,84908.0,0.01177745]
[1744928965326,0.24732227,84910.0,84907.0,0.01177759]
[1744928965959,0.24732651,84908.0,84905.0,0.14133384]
[1744928966171,0.01177717,84910.0,84906.0,0.15310932]
[1744928966652,0.24732255,84910.0,84906.0,0.01177773]
[1744928966852,0.01177717,84910.0,84906.0,0.01177773]
[1744928967259,0.01177717,84910.0,84906.0,0.15310954]
[1744928967729,0.24732329,84910.0,84906.0,0.01177773]
[1744928968090,0.24732329,84910.0,84907.0,0.15310869]
[1744928975457,0.01177703,84911.0,84908.0,0.15310555]
[1744928975643,0.01177703,84911.0,84907.0,0.01177759]
[1744928976747,0.01413185,84911.0,84907.0,0.01177759]
[1744928977063,0.24967518,84911.0,84907.0,0.01177759]
[1744928977269,0.24732036,84911.0,84907.0,0.01177759]
[1744928982997,0.01177717,84910.0,84907.0,0.01177759]
[1744928983339,0.24732243,84910.0,84907.0,0.01177759]
[1744928987289,0.01177717,84910.0,84907.0,0.01177759]
[1744928989252,0.24732036,84911.0,84908.0,0.15310688]
[1744928989459,0.24732207,84910.0,84907.0,0.01177759]
[1744928989786,0.01177703,84911.0,84908.0,0.15310688]
[1744928989963,0.01413185,84911.0,84908.0,0.15310688]
[1744928990271,0.01413185,84911.0,84908.0,0.01177745]
[1744928990811,0.24967455,84911.0,84907.0,0.01177759]
[1744928991010,0.24731973,84911.0,84907.0,0.01177759]
[1744928992932,0.01177717,84910.0,84907.0,0.01177759]
[1744928997084,0.01177717,84910.0,84905.0,0.10155045]
[1744928997651,0.01177717,84910.0,84907.0,0.01177759]
[1744928999325,0.24732227,84910.0,84906.0,0.01177773]
[1744929000644,0.24732214,84910.0,84906.0,0.01177773]
[1744929001365,0.01177731,84909.0,84906.0,0.01177773]
[1744929004787,0.01177717,84910.0,84906.0,0.1531093]
[1744929005036,0.01177565,84921.0,84910.0,0.01177717]
[1744929005272,0.24729799,84918.0,84913.0,0.01177675]
[1744929005524,0.01177675,84913.0,84909.0,0.14132444]
[1744929005753,0.24731611,84912.0,84908.0,0.15310659]
[1744929006001,0.01177689,84912.0,84909.0,0.01177731]
[1744929006243,0.01177689,84912.0,84909.0,0.15310407]
[1744929007042,0.24733731,84905.0,84902.0,0.34]
[1744929007367,0.01177786,84905.0,84902.0,0.34]
[1744929007504,0.01177786,84905.0,84902.0,0.35177828]
[1744929007905,0.01177786,84905.0,84902.0,0.49311693]
[1744929008932,0.01177773,84906.0,84902.0,0.49311693]
[1744929010093,0.01177745,84908.0,84903.0,0.01177814]
[1744929011072,0.01177745,84908.0,84904.0,0.14133527]
[1744929011285,0.29651923,84911.0,84906.0,0.01177773]
[1744929011494,0.01177731,84909.0,84906.0,0.01177773]
[1744929011697,0.24732525,84909.0,84906.0,0.01177773]
[1744929011908,0.24732792,84908.0,84905.0,0.01177786]
[1744929012219,0.01177745,84908.0,84905.0,0.01177786]
[1744929013215,0.01177745,84908.0,84905.0,0.15311142]
[1744929013398,0.01177745,84908.0,84905.0,0.01177786]
[1744929016041,0.29651923,84911.0,84905.0,0.01177786]
[1744929016042,0.21182061,84920.0,84917.0,0.0117762]
[1744929016242,0.01177606,84918.0,84913.0,0.15309682]
[1744929016475,0.01177731,84909.0,84901.0,0.42377842]
[1744929016655,0.24732651,84908.0,84903.0,0.01177814]
[1744929016884,0.01177745,84908.0,84903.0,0.15311483]
[1744929017155,0.01177745,84908.0,84904.0,0.011778]
[1744929017375,0.24732804,84908.0,84904.0,0.011778]
[1744929018174,0.01177745,84908.0,84904.0,0.011778]
[1744929019472,0.24732838,84908.0,84904.0,0.011778]
[1744929019706,0.01177773,84906.0,84902.0,0.15311657]
[1744929019915,0.01177759,84907.0,84903.0,0.15311466]
[1744929022155,0.24832838,84908.0,84904.0,0.14133512]
[1744929022657,0.24832838,84908.0,84903.0,0.15311466]
[1744929024917,0.01177759,84907.0,84904.0,0.34]
[1744929026237,0.23556016,84904.0,84901.0,0.412]
[1744929026446,0.28516571,84902.0,84901.0,0.412]
[1744929026698,0.01177884,84898.0,84894.0,0.34]
[1744929026893,0.23558148,84897.0,84895.0,0.02738786]
[1744929027561,0.01177842,84901.0,84895.0,0.02738786]
[1744929027562,0.24734987,84900.0,84895.0,0.02738786]
[1744929027788,0.24735441,84899.0,84895.0,0.03916711]
[1744929027967,0.01177884,84898.0,84895.0,0.03916711]
[1744929030867,0.01177884,84898.0,84896.0,0.34]
[1744929032699,0.23557958,84897.0,84895.0,0.02738786]
[1744929032902,0.23557958,84897.0,84895.0,0.01840148]
[1744929033239,0.01177884,84898.0,84895.0,0.01840148]
[1744929033523,0.24735721,84898.0,84895.0,0.01840148]
[1744929038702,0.0117787,84899.0,84896.0,0.01177911]
[1744929039420,0.24970964,84899.0,84896.0,0.01177911]
[1744929039615,0.24735482,84899.0,84896.0,0.01177911]
[1744929041406,0.0117787,84899.0,84896.0,0.01177911]
[1744929041607,0.01413352,84899.0,84896.0,0.01177911]
[1744929042773,0.24970885,84899.0,84896.0,0.01177911]
[1744929042970,0.24970885,84899.0,84895.0,0.15975102]
[1744929042971,0.01177884,84898.0,84895.0,0.01840148]
[1744929043214,0.01177884,84898.0,84893.0,0.14135349]
[1744929043799,0.24735712,84898.0,84893.0,0.14135349]
[1744929044793,0.24736398,84896.0,84892.0,0.01177967]
[1744929044989,0.01177911,84896.0,84893.0,0.01177953]
[1744929045188,0.01177884,84898.0,84893.0,0.01177953]
[1744929045189,0.01177884,84898.0,84893.0,0.15313294]
[1744929045531,0.24735706,84898.0,84893.0,0.15313294]
[1744929048797,0.01177897,84897.0,84893.0,0.01177953]
[1744929049576,0.01277897,84897.0,84893.0,0.01177953]
[1744929049979,0.24836019,84897.0,84893.0,0.01177953]
[1744929050502,0.01177911,84896.0,84893.0,0.01177953]
[1744929051249,0.01277911,84896.0,84893.0,0.01177953]
[1744929051866,0.24736438,84895.0,84892.0,0.01177967]
[1744929052073,0.23559561,84892.0,84890.0,0.01619711]
[1744929052290,0.04875482,84891.0,84890.0,0.01619711]
[1744929053349,0.16920273,84891.0,84890.0,0.01633216]
[1744929053657,0.21520273,84891.0,84890.0,0.01633216]
[1744929053861,0.21284791,84891.0,84890.0,0.01633216]
[1744929054034,0.21520273,84891.0,84890.0,0.01633216]
[1744929055445,0.21520273,84891.0,84890.0,0.00097765]
[1744929055651,0.23559901,84890.0,84888.0,0.00082045]
[1744929055847,0.21420273,84889.0,84888.0,0.00126904]
[1744929056408,0.21184791,84889.0,84888.0,0.00126904]
[1744929056895,0.21420273,84889.0,84888.0,0.00126904]
[1744929061636,0.21520273,84889.0,84888.0,0.00126904]
[1744929082081,0.16920273,84889.0,84888.0,0.00126904]
[1744929084086,0.12280273,84889.0,84888.0,0.00126904]
[1744929104843,0.001,84889.0,84888.0,0.04796904]
[1744929111216,0.23795627,84890.0,84888.0,0.04696904]
[1744929111397,0.23795627,84890.0,84888.0,0.04796904]
[1744929114832,0.23795627,84890.0,84888.0,0.00226904]
[1744929116773,0.23560116,84890.0,84888.0,0.00226904]
[1744929120670,0.23795598,84890.0,84888.0,0.00226904]
[1744929128479,0.35740389,84890.0,84888.0,0.00226904]
[1744929128681,0.11944791,84889.0,84888.0,0.00226904]
[1744929129769,0.12180273,84889.0,84888.0,0.00226904]
[1744929130090,0.01178106,84882.0,84880.0,0.34]
[1744929130319,0.00235482,84881.0,84880.0,0.34009505]
[1744929130696,0.23797881,84881.0,84880.0,0.34009505]
[1744929130899,0.23797881,84881.0,84880.0,0.35263049]
[1744929134217,0.23797881,84881.0,84880.0,0.35592004]
[1744929135151,0.23797881,84881.0,84880.0,0.01592004]
[1744929137144,0.01178022,84888.0,84883.0,0.01178092]
[1744929137394,0.001,84890.0,84885.0,0.01178064]
[1744929137395,0.001,84889.0,84885.0,0.01178064]
[1744929137525,0.001,84889.0,84886.0,0.0117805]
[1744929137744,0.001,84889.0,84887.0,0.00330046]
[1744929138393,0.001,84889.0,84887.0,0.14466354]
[1744929139348,0.001,84889.0,84888.0,0.00735218]
[1744929139935,0.001,84889.0,84888.0,0.01065264]
[1744929145333,0.001,84889.0,84888.0,0.00330046]
[1744929145536,0.01178036,84887.0,84884.0,0.01178078]
[1744929145973,0.01178036,84887.0,84882.0,0.49315232]
[1744929146340,0.01178036,84887.0,84882.0,0.50208123]
[1744929148116,0.01178036,84887.0,84883.0,0.01178092]
[1744929148534,0.24739212,84886.0,84882.0,0.36070997]
[1744929148762,0.23561758,84884.0,84882.0,0.00892891]
[1744929148945,0.01178064,84885.0,84882.0,0.00892891]
[1744929149182,0.01178064,84885.0,84881.0,0.49315411]
[1744929149736,0.01178064,84885.0,84882.0,0.01178106]
[1744929149940,0.01178064,84885.0,84882.0,0.02055029]
[1744929150140,0.01178064,84885.0,84883.0,0.00735241]
[1744929150524,0.01178064,84885.0,84884.0,0.00735241]
[1744929151123,0.01178064,84885.0,84882.0,0.34]
[1744929151962,0.01178092,84883.0,84880.0,0.50578702]
[1744929152350,0.01178092,84883.0,84880.0,0.35263049]
[1744929152566,0.2356227,84882.0,84880.0,0.35263049]
[1744929152742,0.01178092,84883.0,84880.0,0.35263049]
[1744929152946,0.01178092,84883.0,84880.0,0.01263049]
[1744929153441,0.01178092,84883.0,84880.0,0.02441182]
[1744929154316,0.01178092,84883.0,84880.0,0.01263049]
[1744929157639,0.24740123,84883.0,84880.0,0.01263049]
[1744929157816,0.01178092,84883.0,84880.0,0.01263049]
[1744929157994,0.2474014,84883.0,84880.0,0.01263049]
[1744929158203,0.23562341,84882.0,84880.0,0.01263049]
[1744929159188,0.00235482,84881.0,84880.0,0.01263049]
[1744929160003,0.001,84881.0,84880.0,0.01263049]
[1744929160717,0.001,84881.0,84880.0,0.01592322]
[1744929162736,0.001,84881.0,84880.0,0.00328853]
[1744929163173,0.001,84881.0,84878.0,0.15316068]